bitfinex/quotes_BTCUSD_20251202
["timestamp","ask_amount","ask_price","bid_price","bid_amount"]
[1764713862166,0.33714999,91892.0,91891.0,0.00011588]
[1764713862381,0.06252299,91891.0,91860.0,0.01088613]
[1764713862591,0.0218402,91867.0,91866.0,0.01088542]
[1764713862775,0.0218402,91867.0,91866.0,0.00011671]
[1764713862929,0.11950319,91867.0,91866.0,0.00011671]
[1764713863340,0.13596554,91867.0,91866.0,0.00011671]
[1764713863542,0.45896554,91867.0,91866.0,0.00011671]
[1764713863743,0.45896554,91867.0,91866.0,0.00211671]
[1764713863744,0.48238545,91867.0,91866.0,0.00211671]
[1764713864264,0.48238545,91867.0,91844.0,0.01088802]
[1764713864265,0.0108879,91845.0,91836.0,0.01088897]
[1764713864460,0.0218402,91838.0,91837.0,0.22866599]
[1764713864661,0.0476902,91838.0,91837.0,0.22866599]
[1764713865251,0.0311302,91838.0,91837.0,0.22866599]
[1764713865453,0.00929,91843.0,91842.0,0.21776529]
[1764713865651,0.00011579,91845.0,91844.0,0.21776055]
[1764713865883,0.00011579,91845.0,91844.0,0.25816055]
[1764713867248,0.00011579,91845.0,91844.0,0.26816055]
[1764713870156,0.0404202,91865.0,91861.0,0.01088601]
[1764713870392,0.0218402,91863.0,91862.0,0.37488628]
[1764713870598,0.0404202,91863.0,91862.0,0.14628421]
[1764713870811,0.0569802,91863.0,91862.0,0.14628421]
[1764713871974,0.11950319,91863.0,91862.0,0.14628421]
[1764713872574,0.12150319,91863.0,91862.0,0.14628421]
[1764713873467,0.12250319,91863.0,91862.0,0.14628421]
[1764713874333,0.0414002,91863.0,91862.0,0.14628421]
[1764713874531,0.0248402,91863.0,91862.0,0.14628421]
[1764713875042,0.0414002,91863.0,91862.0,0.14628421]
[1764713877256,0.0599802,91863.0,91862.0,0.14628421]
[1764713878702,0.0599802,91863.0,91862.0,0.36400209]
[1764713880205,0.01956,91863.0,91862.0,0.36400209]
[1764713882332,0.003,91863.0,91862.0,0.42164209]
[1764713884231,0.01646235,91883.0,91882.0,0.21767049]
[1764713884464,0.03830255,91883.0,91882.0,0.21767049]
[1764713884668,0.0218402,91882.0,91881.0,0.21767232]
[1764713884869,0.0384002,91882.0,91881.0,0.36395653]
[1764713886230,0.0394002,91882.0,91881.0,0.36395653]
[1764713887036,0.0394002,91882.0,91881.0,0.14628421]
[1764713887289,0.0414002,91882.0,91881.0,0.14628421]
[1764713887937,0.0414002,91882.0,91881.0,0.36395706]
[1764713888542,0.0414002,91882.0,91881.0,0.14628421]
[1764713888942,0.25907069,91882.0,91881.0,0.14628421]
[1764713889140,0.0414002,91882.0,91881.0,0.14628421]
[1764713889642,0.25907069,91882.0,91881.0,0.14628421]
[1764713889843,0.30107513,91882.0,91881.0,0.14628421]
[1764713892372,0.36359812,91882.0,91881.0,0.14628421]
[1764713893912,0.21769418,91872.0,91871.0,0.14628421]
[1764713894129,0.0218402,91872.0,91871.0,0.14628421]
[1764713894350,0.0218402,91872.0,91871.0,0.36398076]
[1764713894576,0.0557402,91872.0,91871.0,0.14628421]
[1764713894807,0.0371602,91872.0,91871.0,0.36398076]
[1764713895704,0.0381602,91872.0,91871.0,0.36398076]
[1764713896160,0.0228402,91872.0,91871.0,0.37966076]
[1764713896373,0.0349,91872.0,91871.0,0.36398076]
[1764713896559,0.0567402,91872.0,91871.0,0.36398076]
[1764713897067,0.0381602,91872.0,91871.0,0.36398076]
[1764713897270,0.0567402,91872.0,91871.0,0.14628421]
[1764713897621,0.27443438,91872.0,91871.0,0.14628421]
[1764713897974,0.001,91872.0,91871.0,0.14628421]
[1764713898177,0.001,91872.0,91871.0,0.40302076]
[1764713900231,0.2285323,91891.0,91887.0,0.22854033]
[1764713900430,0.03434173,91891.0,91888.0,0.21765559]
[1764713900638,0.0218402,91889.0,91887.0,0.22854033]
[1764713900842,0.01858,91890.0,91884.0,0.01088328]
[1764713900843,0.0218402,91885.0,91884.0,0.22854823]
[1764713901252,0.03830255,91885.0,91884.0,0.22854823]
[1764713901881,0.03178235,91885.0,91884.0,0.22854823]
[1764713902120,0.07220255,91885.0,91884.0,0.22854823]
[1764713902666,0.0218402,91882.0,91881.0,0.22855575]
[1764713902814,0.0371602,91882.0,91881.0,0.22855575]
[1764713902994,0.0557402,91882.0,91881.0,0.22855575]
[1764713903205,0.0557402,91882.0,91881.0,0.01088364]
[1764713903413,0.01088447,91874.0,91869.0,0.01088506]
[1764713903614,0.03830255,91868.0,91867.0,0.0281253]
[1764713904080,0.07220255,91868.0,91867.0,0.1464]
[1764713904818,0.07220255,91868.0,91867.0,0.1484]
[1764713905663,0.05362255,91868.0,91867.0,0.1484]
[1764713906045,0.05362255,91868.0,91867.0,0.36610603]
[1764713909911,0.01646235,91868.0,91867.0,0.36610603]
[1764713913595,0.05362255,91868.0,91867.0,0.1484]
[1764713913795,0.07220255,91868.0,91867.0,0.36610603]
[1764713914869,0.3524292,91868.0,91867.0,0.002]
[1764713915090,0.37591103,91868.0,91867.0,0.002]
[1764713915735,0.0218402,91858.0,91857.0,0.22861606]
[1764713915989,0.0218402,91858.0,91854.0,0.01088684]
[1764713915990,0.0218402,91856.0,91855.0,0.22862115]
[1764713916420,0.0383802,91856.0,91855.0,0.22862115]
[1764713917067,0.0393802,91856.0,91855.0,0.22862115]
[1764713918360,0.0218402,91853.0,91851.0,0.01088719]
[1764713918540,0.0218402,91855.0,91854.0,0.21773578]
[1764713918744,0.0383802,91855.0,91854.0,0.21773578]
[1764713920022,0.0218402,91851.0,91850.0,0.01724]
[1764713920165,0.05484255,91851.0,91850.0,0.23498632]
[1764713920577,0.05484255,91851.0,91850.0,0.38138632]
[1764713920907,0.05484255,91851.0,91850.0,0.1464]
[1764713920908,0.07342255,91851.0,91850.0,0.1464]
[1764713921255,0.07342255,91851.0,91850.0,0.36414632]
[1764713921596,0.07442255,91851.0,91850.0,0.36414632]
[1764713922265,0.07442255,91851.0,91850.0,0.1464]
[1764713922981,0.05584255,91851.0,91850.0,0.36414632]
[1764713923341,0.07442255,91851.0,91850.0,0.36414632]
[1764713923973,0.2921665,91851.0,91850.0,0.1464]
[1764713924380,0.07442255,91851.0,91850.0,0.1464]
[1764713924586,0.2921665,91851.0,91850.0,0.1464]
[1764713924924,0.07442255,91851.0,91850.0,0.1464]
[1764713925126,0.07442255,91851.0,91850.0,0.36414632]
[1764713926340,0.07442255,91851.0,91850.0,0.1464]
[1764713926547,0.0228402,91851.0,91850.0,0.36414632]
[1764713927299,0.0218402,91851.0,91850.0,0.36414632]
[1764713929833,0.01646235,91853.0,91850.0,0.36414632]
[1764713929834,0.03830255,91853.0,91852.0,0.21774158]
[1764713931172,0.01646235,91853.0,91852.0,0.21774158]
[1764713931388,0.03930255,91853.0,91852.0,0.21774158]
[1764713932662,0.03930255,91853.0,91852.0,0.36414158]
[1764713932993,0.05584255,91853.0,91852.0,0.36414158]
[1764713935160,0.001,91853.0,91852.0,0.40209158]
[1764713936530,0.0311302,91870.0,91869.0,0.21770129]
[1764713938178,0.0321302,91870.0,91869.0,0.21770129]
[1764713938374,0.0321302,91870.0,91869.0,0.36410129]
[1764713940266,0.0486702,91870.0,91869.0,0.36410129]
[1764713945428,0.0672502,91870.0,91869.0,0.36410129]
[1764713945843,0.12977319,91870.0,91869.0,0.1464]
[1764713946202,0.34747211,91870.0,91869.0,0.1464]
[1764713946539,0.37093856,91870.0,91869.0,0.1464]
[1764713947546,0.69393856,91870.0,91869.0,0.1464]
[1764713950349,0.02446645,91870.0,91869.0,0.21770129]
[1764713950551,0.001,91870.0,91869.0,0.21770129]
[1764713951133,0.0228402,91870.0,91869.0,0.21770129]
[1764713956293,0.0228402,91870.0,91869.0,0.36410129]
[1764713963104,0.0228402,91870.0,91869.0,0.35910129]
[1764713965361,0.03614,91870.0,91869.0,0.1464]
[1764713966577,0.12050319,91870.0,91869.0,0.1464]
[1764713967365,0.12050319,91870.0,91869.0,0.36410129]
[1764713967684,0.10192319,91870.0,91869.0,0.36410129]
[1764713968103,0.10192319,91870.0,91869.0,0.21770129]
[1764713969250,0.12050319,91870.0,91869.0,0.21770129]
[1764713969621,0.12050319,91870.0,91867.0,0.22859119]
[1764713969622,0.08436319,91868.0,91867.0,0.22859119]
[1764713969823,0.10092319,91868.0,91867.0,0.22859119]
[1764713970023,0.11950319,91868.0,91867.0,0.22859119]
[1764713970775,0.10092319,91868.0,91867.0,0.22859119]
[1764713970989,0.02575235,91871.0,91869.0,0.21770129]
[1764713971206,0.08436319,91870.0,91869.0,0.21770129]
[1764713972366,0.08536319,91870.0,91869.0,0.21770129]
[1764713973703,0.0228402,91870.0,91869.0,0.21770129]
[1764713974056,0.0228402,91870.0,91869.0,0.37410129]
[1764713978457,0.001,91870.0,91869.0,0.37410129]
[1764713984110,0.01736,91870.0,91869.0,0.37410129]
[1764713984321,0.03594,91870.0,91869.0,0.1564]
[1764713984723,0.03594,91870.0,91869.0,0.37410129]
[1764713986975,0.0392002,91870.0,91869.0,0.37410129]
[1764713987299,0.0577802,91870.0,91869.0,0.37410129]
[1764713996723,0.0392002,91870.0,91869.0,0.37410129]
[1764713996898,0.0577802,91870.0,91869.0,0.1564]
[1764713997102,0.0577802,91870.0,91869.0,0.37410129]
[1764713999587,0.0577802,91870.0,91869.0,0.1564]
[1764713999783,0.0577802,91870.0,91869.0,0.37410129]
[1764714002448,0.0392002,91870.0,91869.0,0.37410129]
[1764714004125,0.0577802,91870.0,91869.0,0.37410129]
[1764714004242,0.12030319,91870.0,91869.0,0.1564]
[1764714004451,0.33800211,91870.0,91869.0,0.1564]
[1764714004675,0.36149389,91870.0,91869.0,0.1564]
[1764714004905,0.68449389,91870.0,91869.0,0.1564]
[1764714005662,0.72368821,91870.0,91869.0,0.1564]
[1764714005817,0.68449389,91870.0,91869.0,0.01]
[1764714006390,0.68449389,91870.0,91844.0,0.01]
[1764714006391,0.30212136,91845.0,91844.0,0.01]
[1764714006605,0.33431371,91845.0,91844.0,0.01]
[1764714006836,0.35289371,91845.0,91844.0,0.01]
[1764714007033,0.15863202,91845.0,91844.0,0.01]
[1764714007231,0.13513554,91845.0,91844.0,0.01]
[1764714007431,0.11655554,91845.0,91844.0,0.01]
[1764714007644,0.02017767,91847.0,91844.0,0.01]
[1764714007645,0.01646235,91846.0,91844.0,0.23864857]
[1764714007844,0.01646235,91846.0,91845.0,0.21775817]
[1764714008051,0.03830255,91846.0,91845.0,0.21775817]
[1764714009538,0.07181299,91847.0,91846.0,0.2177558]
[1764714011578,0.0218402,91849.0,91846.0,0.22864359]
[1764714011781,0.0218402,91849.0,91848.0,0.21775106]
[1764714012240,0.0218402,91860.0,91859.0,0.21772499]
[1764714013593,0.06252299,91870.0,91868.0,0.01088518]
[1764714013733,0.06252299,91870.0,91869.0,0.21770129]
[1764714013937,0.0218402,91870.0,91869.0,0.36410129]
[1764714014198,0.03830255,91871.0,91870.0,0.21769892]
[1764714014777,0.10082554,91871.0,91870.0,0.21769892]
[1764714015622,0.0218402,91879.0,91874.0,0.21768944]
[1764714015751,0.0311302,91879.0,91878.0,0.21767996]
[1764714016384,0.03830255,91885.0,91884.0,0.21766575]
[1764714016733,0.01646235,91885.0,91884.0,0.21766575]
[1764714017012,0.03830255,91885.0,91884.0,0.21766575]
[1764714017455,0.05403255,91885.0,91884.0,0.21766575]
[1764714017651,0.03830255,91885.0,91884.0,0.21766575]
[1764714017862,0.08441899,91891.0,91890.0,0.22853205]
[1764714018810,0.09470899,91891.0,91890.0,0.22853205]
[1764714019803,0.08441899,91889.0,91888.0,0.22853683]
[1764714020042,0.021896,91883.0,91879.0,0.01088387]
[1764714020247,0.021896,91883.0,91881.0,0.2176708]
[1764714020944,0.031186,91883.0,91881.0,0.2176708]
[1764714022044,0.021896,91883.0,91881.0,0.2176708]
[1764714024950,0.08441899,91893.0,91892.0,0.01088234]
[1764714025356,0.09370899,91893.0,91892.0,0.01088234]
[1764714025559,0.10299899,91893.0,91892.0,0.01088234]
[1764714026311,0.10499899,91893.0,91892.0,0.01088234]
[1764714027511,0.08441899,91890.0,91889.0,0.37493487]
[1764714027726,0.09370899,91890.0,91889.0,0.37493487]
[1764714028717,0.09470899,91890.0,91889.0,0.37493487]
[1764714029447,0.08541899,91890.0,91889.0,0.37493487]
[1764714029651,0.08541899,91890.0,91889.0,0.26748487]
[1764714029652,0.001,91890.0,91889.0,0.26748487]
[1764714030685,0.00929,91906.0,91905.0,0.21761601]
[1764714030887,0.00929,91906.0,91905.0,0.36401601]
[1764714036815,0.01858,91906.0,91905.0,0.36401601]
[1764714037286,0.00929,91906.0,91905.0,0.36401601]
[1764714039666,0.01858,91906.0,91905.0,0.36401601]
[1764714040072,0.00929,91906.0,91905.0,0.36401601]
[1764714047723,0.32990263,91906.0,91905.0,0.1464]
[1764714048228,0.35332787,91906.0,91896.0,0.1464]
[1764714048528,0.10088134,91897.0,91896.0,0.1464]
[1764714048834,0.3278063,91897.0,91896.0,0.1464]
[1764714048981,0.11946134,91897.0,91896.0,0.1464]
[1764714049199,0.3370963,91897.0,91896.0,0.1464]
[1764714050547,0.11017134,91897.0,91896.0,0.1464]
[1764714050904,0.3278063,91897.0,91896.0,0.1464]
[1764714051245,0.3370963,91897.0,91896.0,0.1464]
[1764714054469,0.11946134,91897.0,91896.0,0.1464]
[1764714054653,0.11017134,91897.0,91896.0,0.36403732]
[1764714054866,0.06252299,91897.0,91896.0,0.36403732]
[1764714058279,0.00929,91906.0,91905.0,0.21761601]
[1764714058496,0.00929,91906.0,91903.0,0.01088103]
[1764714058705,0.00929,91906.0,91905.0,0.21761601]
[1764714059132,0.01858,91906.0,91905.0,0.21761601]
[1764714059361,0.01858,91906.0,91904.0,0.21761838]
[1764714059552,0.07181299,91905.0,91904.0,0.21761838]
[1764714059741,0.06252299,91904.0,91901.0,0.01088127]
[1764714059944,0.07898534,91902.0,91901.0,0.22850451]
[1764714060103,0.07898534,91902.0,91901.0,0.37490451]
[1764714060310,0.08827534,91902.0,91901.0,0.1464]
[1764714060546,0.08827534,91902.0,91901.0,0.36402548]
[1764714061610,0.08827534,91902.0,91901.0,0.1464]
[1764714062024,0.08827534,91902.0,91901.0,0.36402548]
[1764714062199,0.02575235,91902.0,91901.0,0.36402548]
[1764714062555,0.08827534,91902.0,91901.0,0.1464]
[1764714062756,0.30589846,91902.0,91901.0,0.1464]
[1764714062964,0.11171892,91902.0,91901.0,0.1464]
[1764714063583,0.08827534,91902.0,91901.0,0.1464]
[1764714064383,0.11171892,91902.0,91901.0,0.1464]
[1764714064717,0.08827534,91902.0,91901.0,0.1464]
[1764714065497,0.08827534,91902.0,91901.0,0.36402548]
[1764714065712,0.30589846,91902.0,91901.0,0.1464]
[1764714066111,0.08827534,91902.0,91901.0,0.36402548]
[1764714066317,0.30589846,91902.0,91901.0,0.1464]
[1764714066518,0.33708446,91902.0,91901.0,0.1464]
[1764714066719,0.36052804,91902.0,91901.0,0.1464]
[1764714067936,0.08441899,91887.0,91886.0,0.1464]
[1764714068317,0.09370899,91887.0,91886.0,0.36406101]
[1764714068468,0.021896,91887.0,91886.0,0.36406101]
[1764714068649,0.00929,91888.0,91887.0,0.21765864]
[1764714068853,0.02575235,91888.0,91887.0,0.21765864]
[1764714070984,0.02575235,91888.0,91887.0,0.21865864]
[1764714071792,0.00929,91895.0,91892.0,0.22852677]
[1764714071990,0.031186,91895.0,91894.0,0.21764206]
[1764714074883,0.01088293,91887.0,91882.0,0.01088352]
[1764714075053,0.021896,91875.0,91874.0,0.21768944]
[1764714075252,0.021896,91875.0,91874.0,0.0172]
[1764714075510,0.031186,91875.0,91874.0,0.21768944]
[1764714075665,0.00929,91875.0,91873.0,0.21769041]
[1764714075865,0.22697715,91875.0,91872.0,0.0172]
[1764714076066,0.21768944,91874.0,91872.0,0.0172]
[1764714076264,0.00929,91873.0,91872.0,0.0172]
[1764714076589,0.021896,91871.0,91870.0,0.22858368]
[1764714078020,0.021896,91871.0,91870.0,0.37498368]
[1764714078260,0.021896,91872.0,91871.0,0.01088482]
[1764714078461,0.021896,91872.0,91871.0,0.22858137]
[1764714079546,0.040476,91872.0,91871.0,0.22858137]
[1764714080805,0.031186,91872.0,91871.0,0.22858137]
[1764714083050,0.031186,91872.0,91871.0,0.37498137]
[1764714085536,0.031186,91872.0,91871.0,0.1464]
[1764714085741,0.08441899,91868.0,91867.0,0.1464]
[1764714085917,0.08441899,91868.0,91856.0,0.3750187]
[1764714085918,0.06252299,91857.0,91856.0,0.3750187]
[1764714087089,0.06252299,91857.0,91856.0,0.3760187]
[1764714088094,0.07181299,91857.0,91856.0,0.3760187]
[1764714088855,0.09370899,91857.0,91856.0,0.3760187]
[1764714089709,0.10299899,91857.0,91856.0,0.001]
[1764714090290,0.10299899,91857.0,91856.0,0.2187321]
[1764714091046,0.09370899,91857.0,91856.0,0.2187321]
[1764714092837,0.09370899,91857.0,91856.0,0.001]
[1764714093295,0.09370899,91857.0,91856.0,0.2187321]
[1764714093913,0.09370899,91857.0,91856.0,0.001]
[1764714094213,0.09370899,91857.0,91856.0,0.2187321]
[1764714095811,0.09370899,91857.0,91856.0,0.001]
[1764714096011,0.32072872,91857.0,91856.0,0.001]
[1764714096810,0.30215109,91856.0,91855.0,0.1464]
[1764714097135,0.32073109,91856.0,91855.0,0.1464]
[1764714098260,0.32173109,91856.0,91855.0,0.1464]
[1764714098860,0.021896,91851.0,91850.0,0.1464]
[1764714099060,0.03835835,91851.0,91850.0,0.1464]
[1764714099215,0.05693835,91851.0,91850.0,0.1464]
[1764714099552,0.05693835,91851.0,91850.0,0.36414632]
[1764714099742,0.05693835,91851.0,91850.0,0.1464]
[1764714100066,0.33720529,91851.0,91850.0,0.1464]
[1764714100271,0.33820529,91851.0,91850.0,0.1464]
[1764714101659,0.31630929,91851.0,91850.0,0.1464]
[1764714101902,0.33820529,91851.0,91850.0,0.1464]
[1764714102176,0.33820529,91851.0,91833.0,0.0172]
[1764714102177,0.30221036,91831.0,91820.0,0.0004]
[1764714102411,0.09370899,91831.0,91828.0,0.01088992]
[1764714102552,0.11946134,91831.0,91828.0,0.22868766]
[1764714102759,0.11946134,91831.0,91828.0,0.01088992]
[1764714102959,0.11946134,91831.0,91822.0,0.01089063]
[1764714103268,0.11946134,91831.0,91826.0,0.01089016]
[1764714103463,0.11946134,91831.0,91830.0,0.0024]
[1764714103597,0.11946134,91831.0,91830.0,0.0004]
[1764714103980,0.08441899,91831.0,91830.0,0.21919374]
[1764714105090,0.08441899,91831.0,91830.0,0.21819374]
[1764714105495,0.08441899,91831.0,91830.0,0.21919374]
[1764714105709,0.09370899,91831.0,91830.0,0.21919374]
[1764714107738,0.09370899,91831.0,91830.0,0.36559374]
[1764714108555,0.08441899,91831.0,91830.0,0.36559374]
[1764714111604,0.00929,91839.0,91838.0,0.01088873]
[1764714111807,0.09370899,91839.0,91838.0,0.2286635]
[1764714113697,0.09370899,91839.0,91838.0,0.3750635]
[1764714114241,0.03835835,91851.0,91849.0,0.21774812]
[1764714114470,0.09370899,91850.0,91849.0,0.21774812]
[1764714114641,0.10299899,91850.0,91849.0,0.21774812]
[1764714114854,0.00929,91850.0,91849.0,0.21774869]
[1764714115055,0.021896,91849.0,91848.0,0.228638]
[1764714115284,0.031186,91849.0,91848.0,0.228638]
[1764714116221,0.032186,91849.0,91848.0,0.228638]
[1764714116518,0.033186,91849.0,91848.0,0.228638]
[1764714116916,0.021896,91848.0,91846.0,0.01088779]
[1764714117179,0.07181299,91847.0,91845.0,0.1464]
[1764714117385,0.09370899,91846.0,91845.0,0.1464]
[1764714117550,0.32075479,91846.0,91845.0,0.1464]
[1764714119493,0.10299899,91846.0,91845.0,0.1464]
[1764714119699,0.07181299,91846.0,91845.0,0.21775817]
[1764714119896,0.0108879,91845.0,91841.0,0.01088838]
[1764714120123,0.08441899,91841.0,91840.0,0.22865701]
[1764714120333,0.021896,91838.0,91837.0,0.1464]
[1764714120486,0.09370899,91838.0,91837.0,0.1464]
[1764714120703,0.32077376,91838.0,91837.0,0.1464]
[1764714121169,0.34423054,91838.0,91837.0,0.1464]
[1764714124811,0.30221036,91831.0,91830.0,0.0004]
[1764714125168,0.31150036,91831.0,91830.0,0.0004]
[1764714125367,0.32079036,91831.0,91830.0,0.0004]
[1764714125511,0.66255836,91831.0,91830.0,0.0004]
[1764714125711,0.68445436,91831.0,91830.0,0.0004]
[1764714126139,0.68881709,91831.0,91830.0,0.0006]
[1764714126542,0.54081509,91821.0,91820.0,0.0004]
[1764714126744,0.67445043,91821.0,91820.0,0.0004]
[1764714126953,0.68374043,91821.0,91820.0,0.0004]
[1764714127777,0.62525781,91811.0,91810.0,0.0004]
[1764714128112,0.62525781,91811.0,91800.0,0.0004]
[1764714128113,0.30228154,91801.0,91800.0,0.0004]
[1764714128315,0.33501304,91801.0,91800.0,0.0004]
[1764714128471,0.36076539,91801.0,91800.0,0.0004]
[1764714130859,0.36176539,91801.0,91800.0,0.0004]
[1764714131515,0.36276539,91801.0,91800.0,0.0004]
[1764714133151,0.33932389,91801.0,91800.0,0.0004]
[1764714134754,0.35652389,91801.0,91800.0,0.0004]
[1764714135698,0.67952389,91801.0,91800.0,0.0004]
[1764714135879,0.68569153,91801.0,91800.0,0.0004]
[1764714136096,0.67952389,91801.0,91800.0,0.0004]
[1764714136994,0.21788628,91791.0,91790.0,0.0004]
[1764714137260,0.64388527,91791.0,91790.0,0.0004]
[1764714137512,0.65317527,91791.0,91790.0,0.0004]
[1764714141929,0.63127927,91791.0,91790.0,0.0004]
[1764714142129,0.65317527,91791.0,91790.0,0.0004]
[1764714142447,0.67041527,91791.0,91790.0,0.0004]
[1764714144332,0.65317527,91791.0,91790.0,0.0004]
[1764714144928,0.021896,91794.0,91790.0,0.0004]
[1764714145097,0.00929,91798.0,91797.0,0.21787204]
[1764714145678,0.00929,91805.0,91800.0,0.21786492]
[1764714145879,0.10088134,91801.0,91800.0,0.21786492]
[1764714146867,0.10188134,91801.0,91800.0,0.21786492]
[1764714147851,0.001,91801.0,91800.0,0.25680492]
[1764714148296,0.001,91801.0,91800.0,0.25692071]
[1764714148775,0.07898534,91803.0,91802.0,0.21786017]
[1764714148967,0.07898534,91803.0,91802.0,0.23309017]
[1764714149462,0.07898534,91803.0,91802.0,0.25680017]
[1764714150549,0.07898534,91803.0,91802.0,0.25980017]
[1764714152105,0.03429194,91819.0,91816.0,0.01089134]
[1764714152106,0.021896,91818.0,91816.0,0.01089134]
[1764714152301,0.021896,91818.0,91816.0,0.22871829]
[1764714152302,0.00929,91817.0,91816.0,0.22871829]
[1764714152933,0.07181299,91817.0,91816.0,0.22871829]
[1764714153234,0.06252299,91817.0,91816.0,0.22871829]
[1764714153468,0.001,91818.0,91817.0,0.21782458]
[1764714153749,0.08441899,91827.0,91826.0,0.22869339]
[1764714154175,0.031186,91833.0,91832.0,0.217789]
[1764714154388,0.01088945,91832.0,91823.0,0.01089051]
[1764714154543,0.01088968,91830.0,91825.0,0.01089028]
[1764714154740,0.08441899,91826.0,91825.0,0.22869588]
[1764714154999,0.09370899,91826.0,91825.0,0.22869588]
[1764714155402,0.09370899,91826.0,91825.0,0.22881167]
[1764714155747,0.09370899,91826.0,91825.0,0.00011579]
[1764714156089,0.10299899,91826.0,91825.0,0.00011579]
[1764714156295,0.09370899,91826.0,91825.0,0.00011579]
[1764714156495,0.09470899,91826.0,91825.0,0.00011579]
[1764714156697,0.09470899,91826.0,91825.0,0.21792139]
[1764714157062,0.09570899,91826.0,91825.0,0.21792139]
[1764714157461,0.09570899,91826.0,91825.0,0.00011579]
[1764714158692,0.10499899,91826.0,91825.0,0.00011579]
[1764714158893,0.32280222,91826.0,91825.0,0.00011579]
[1764714160082,0.10499899,91826.0,91825.0,0.00011579]
[1764714160493,0.10499899,91826.0,91825.0,0.21792139]
[1764714161227,0.08641899,91826.0,91825.0,0.21792139]
[1764714162142,0.08541899,91826.0,91825.0,0.21792139]
[1764714162689,0.08441899,91826.0,91825.0,0.21792139]
[1764714163526,0.08441899,91826.0,91825.0,0.00011579]
[1764714163780,0.10299899,91826.0,91825.0,0.00011579]
[1764714163958,0.10299899,91826.0,91825.0,0.21792139]
[1764714164106,0.09370899,91826.0,91825.0,0.21792139]
[1764714165758,0.09370899,91826.0,91825.0,0.00011579]
[1764714166583,0.31151222,91826.0,91825.0,0.00011579]
[1764714167015,0.09370899,91826.0,91825.0,0.21792139]
[1764714170569,0.08441899,91826.0,91825.0,0.21792139]
[1764714172763,0.09370899,91826.0,91825.0,0.00011579]
[1764714173164,0.09370899,91826.0,91825.0,0.21792139]
[1764714173371,0.09370899,91826.0,91825.0,0.00011579]
[1764714173802,0.31151222,91826.0,91825.0,0.00011579]
[1764714174014,0.32080222,91826.0,91825.0,0.00011579]
[1764714174169,0.10299899,91826.0,91825.0,0.00011579]
[1764714175893,0.32080222,91826.0,91825.0,0.00011579]
[1764714176924,0.34427662,91826.0,91825.0,0.00011579]
[1764714177184,0.34428316,91826.0,91825.0,0.00011579]
[1764714177703,0.32080222,91826.0,91825.0,0.00011579]
[1764714178261,0.34428887,91826.0,91825.0,0.00011579]
[1764714178738,0.09529964,91826.0,91825.0,0.00011579]
[1764714178985,0.07181299,91826.0,91825.0,0.00011579]
[1764714179193,0.09370899,91826.0,91825.0,0.00011579]
[1764714179469,0.31151222,91826.0,91825.0,0.00011579]
[1764714179668,0.11719564,91826.0,91825.0,0.00011579]
[1764714179826,0.10299899,91826.0,91825.0,0.00011579]
[1764714180030,0.09670899,91826.0,91825.0,0.00011579]
[1764714180428,0.08441899,91826.0,91825.0,0.21792139]
[1764714180629,0.021896,91835.0,91832.0,0.217789]
[1764714180812,0.02348665,91836.0,91835.0,0.21778189]
[1764714181015,0.02575235,91839.0,91838.0,0.21777477]
[1764714182317,0.03504235,91839.0,91836.0,0.22866639]
[1764714182549,0.02575235,91839.0,91838.0,0.21777477]
[1764714182984,0.02675235,91839.0,91838.0,0.21777477]
[1764714183191,0.02775235,91839.0,91838.0,0.21777477]
[1764714185108,0.02775235,91839.0,91838.0,0.36417477]
[1764714187004,0.02775235,91839.0,91838.0,0.1464]
[1764714187203,0.02775235,91839.0,91838.0,0.36417477]
[1764714187363,0.02775235,91839.0,91838.0,0.1464]
[1764714187563,0.03704235,91839.0,91838.0,0.1464]
[1764714187778,0.02775235,91839.0,91838.0,0.1464]
[1764714187993,0.02775235,91839.0,91838.0,0.36417477]
[1764714190786,0.02775235,91839.0,91838.0,0.1464]
[1764714190988,0.02775235,91839.0,91838.0,0.36417477]
[1764714191509,0.24552475,91839.0,91838.0,0.1464]
[1764714191733,0.24552475,91839.0,91838.0,0.36417477]
[1764714191734,0.02775235,91839.0,91838.0,0.36417477]
[1764714192753,0.02775235,91839.0,91838.0,0.1464]
[1764714192956,0.34852374,91839.0,91838.0,0.1464]
[1764714193156,0.1542323,91839.0,91838.0,0.1464]
[1764714193493,0.34852374,91839.0,91838.0,0.1464]
[1764714193699,0.3720047,91839.0,91838.0,0.1464]
[1764714194094,0.1542323,91839.0,91838.0,0.1464]
[1764714194297,0.13075134,91839.0,91838.0,0.1464]
[1764714194493,0.1542323,91839.0,91838.0,0.1464]
[1764714194714,0.1449423,91839.0,91838.0,0.36417477]
[1764714194920,0.1449423,91839.0,91838.0,0.1464]
[1764714195505,0.3627147,91839.0,91838.0,0.1464]
[1764714195749,0.1449423,91839.0,91838.0,0.1464]
[1764714195889,0.12146134,91839.0,91838.0,0.1464]
[1764714196088,0.12146134,91839.0,91838.0,0.36417477]
[1764714196707,0.12146134,91839.0,91838.0,0.21777477]
[1764714196906,0.08441899,91838.0,91837.0,0.21777674]
[1764714197700,0.09370899,91838.0,91837.0,0.21777674]
[1764714198201,0.09570899,91838.0,91837.0,0.21777674]
[1764714198401,0.07381299,91838.0,91836.0,0.2286684]
[1764714198742,0.09370899,91837.0,91832.0,0.1464]
[1764714198955,0.031186,91833.0,91832.0,0.1464]
[1764714199152,0.01088992,91828.0,91808.0,0.1464]
[1764714199395,0.31151222,91826.0,91803.0,0.01089289]
[1764714199613,0.65799318,91826.0,91803.0,0.0172]
[1764714199781,0.23975143,91804.0,91803.0,0.0172]
[1764714200013,0.21787207,91797.0,91786.0,0.0108949]
[1764714200230,0.02563235,91791.0,91788.0,0.01089467]
[1764714200404,0.04752835,91791.0,91789.0,0.217891]
[1764714200649,0.04752835,91791.0,91790.0,0.21828865]
[1764714201285,0.03835835,91791.0,91790.0,0.21828865]
[1764714202650,0.01646235,91791.0,91790.0,0.21828865]
[1764714203693,0.01646235,91791.0,91790.0,0.0004]
[1764714203694,0.30604162,91791.0,91790.0,0.0004]
[1764714203847,0.11922134,91791.0,91790.0,0.0004]
[1764714204893,0.44222134,91791.0,91790.0,0.0004]
[1764714207019,0.44322134,91791.0,91790.0,0.0004]
[1764714207200,0.44422134,91791.0,91790.0,0.0004]
[1764714209299,0.42232534,91791.0,91790.0,0.0004]
[1764714209455,0.44422134,91791.0,91790.0,0.0004]
[1764714211201,0.46142134,91791.0,91790.0,0.0004]
[1764714213273,0.44422134,91791.0,91790.0,0.0004]
[1764714213511,0.42775899,91791.0,91790.0,0.0004]
[1764714214273,0.64564527,91791.0,91790.0,0.0004]
[1764714219366,0.66284527,91791.0,91790.0,0.0004]
[1764714220170,0.66184527,91791.0,91790.0,0.0004]